{"text_format":"2","workbook":"xlsx","n_sheets":1,"sheets":["Sheet1"],"not_rendered":{"charts":0,"images":0,"macros":0,"external_links":0,"defined_names":0,"comments":0,"pivot_tables":0},"unopened":[],"bounds":{"document_bytes":16777216,"sheet_cells":100000,"run_cost":"one","rows_first":2000,"rows_last":500,"rows_between":2000,"halvings":0,"cell_chars":16384,"cell_head_chars":4096},"cells_cut":0,"cells_raw":0,"read":"whole","date_system":"1900"}

{"sheet":"Sheet1","index":0,"n_rows":127,"n_cols":5,"rows_kept":127,"cut":false,"hidden":false,"merged":[]}
["Room","Item","Number","Cost","Total"]
["Office","32\" Flat Screen TV",1,100,{"$f":"SUM(C2*D2)","v":100}]
[null,"40\" Flat Screen TV",1,130,{"$f":"SUM(C3*D3)","v":130}]
[null,"Swann Security System with 8 cameras",1,400,400]
[null,"Swann extra hard drive system",1,150,150]
[null,"Blink Security System wifi cameras",7,60,420]
[null,"Linksys Wireless Router",1,25,25]
[null,"Lazy Boy office chair",1,75,75]
[null,"HP Ink Jet Printer",1,150,150]
[null,"2 drawer metal file cabinet",1,25,25]
[null,"Floor Rugs",2,25,50]
[null,"Futon",1,75,75]
[null,"Ceiling fan",1,35,35]
[null,"Barrel Table",1,300,300]
[null,"Barrel Stools",4,50,200]
[null,"Brand New Rustic Ceiling Fans in Box",3,179,537]
[null,"Rustic Amish built desk",1,200,200]
[null,"Dehumidifier",1,150,150]
[null,"Wall Clock",1,10,10]
[null,"Misc power strips, wiring, tall bar stool, trash can, etc","N/A","N/A"]
["Office Closet","4' folding table",1,20,20]
[null,"Shelf Unit",2,10,20]
[null,"Coffee Pot",2,5,10]
[null,"Wall Mirror",1,100,100]
[null,"Misc plates, cups, napkins paper towels, toilet paper, etc.","N/A","N/A"]
["Basement Common Area","Refrigerator/Freezer",2,75,150]
[null,"Rustic Wedding Decorations","Many",3500,3500]
[null,"Wedding Signs","Many",800,800]
[null,"Whiskey Barrel",2,85,170]
[null,"5' stained Amish church bench",2,75,150]
[null,"12' Banquet Table",2,25,50]
[null,"Wall mirror",1,100,100]
[null,"Amish built-in shelf display unit",1,400,400]
[null,"Cleaning supplies, brooms, mops, buckets,light bulbs, etc","N/A","N/A"]
[null,"Wall Decor, Antique Tools, Mennonite Quilt,trash cans, etc","N/A","N/A"]
["Groom Room","5' Stained Amish Church Benches",2,75,150]
[null,"Barrel Table",1,300,300]
[null,"Barrel Stools",4,50,200]
[null,"Wall Mirror",1,100,100]
[null,"Shelves, wall hooks, antique tools, wall décor, trash can,etc","N/A","N/A"]
["Bridal Suite","Wall mirror",3,100,300]
[null,"Full length floor mirror",1,100,100]
[null,"10' stained amish church bench",1,150,150]
[null,"Rustic log end tables",2,100,200]
[null,"Black faux leather table chairs",4,35,140]
[null,"Barrel stools",4,50,200]
[null,"10' Make up counter",1,80,80]
[null,"4' make up lighting strips",2,25,50]
[null,"Ceiling fan",1,75,75]
[null,"Dehumidifier",1,150,150]
[null,"Electric room heater",1,50,50]
[null,"Wall décor, signs, trash can, misc decorations, wall hooks, etc","N/A","N/A"]
["Workshop","Yard tools, shovels, rakes, etc","Many",200,200]
[null,"Dehumidifier",1,150,150]
[null,"12' Banquet Table",2,25,50]
[null,"Misc hand tools in rolling tool box, screw drivers, hammers, etc","Many",600,600]
[null,"Cordless power hand tools","Many",200,200]
[null,"Table Saw",1,90,90]
[null,"Electric power washer",1,200,200]
[null,"Powered backpack sprayer",1,275,275]
[null,"Manual backpack sprayer",2,50,100]
[null,"Seed spreader/spiker",1,200,200]
[null,"Misc plumbing supplies for bathrooms","Many",450,450]
[null,"Misc hardware, screws, nails, bolts, etc","Many",150,150]
[null,"Extra poly folding banquet chairs",40,14,560]
[null,"Plastic folding banquet chris",30,10,300]
[null,"Powder coated metal staging",1,600,{"$f":"SUM(C67*D67)","v":600}]
[null,"Upright Freezer",1,150,150]
[null,"Cordless blower",1,25,25]
[null,"Cordless weed whacker",1,25,25]
[null,"Whiskey Barrel",2,85,170]
[null,"Wedding direction signs","Many",275,275]
[null,"Floor fans",4,45,180]
[null,"Extension cords",6,15,90]
[null,"Hydraulic lawnmower jack",1,90,90]
[null,"Hydraulic floor jack",1,50,50]
[null,"Refrigerator dolly",1,275,275]
[null,"Battery chargers/maintainers",2,15,30]
[null,"Air compressor (Craftsman) with hose and wall reel",1,350,350]
[null,"Portable air tank",1,35,35]
[null,"50' lifetime garden hose",1,15,15]
[null,"2 tap Jockey box,tap parts, food grade silicone tubing",1,450,450]
[null,"Misc lumber, chemicals, fluids,paint, waterproofing,rope,chain etc","N/A","N/A"]
["Utility Room","Water softener",1,800,800]
[null,"Floor Fans",2,45,90]
[null,"Misc furnace filters, furnace parts, etc.  ","N/A","N/A"]
["Ceremony Patio","Whiskey Barrel",5,85,425]
[null,"Upholstered 20' stained Amish Church Benches",10,250,2500]
[null,"Amish built wedding arbor",1,250,250]
[null,"Misc trash cans and hand built wooden surounds","N/A","N/A"]
["Covered Porch","Whiskey Barrel",4,85,340]
[null,"Milk Cans",4,35,140]
[null,"5' stained Amish church benches",4,75,300]
[null,"Decorative MI carved bench",2,150,300]
[null,"Rocking Chair",2,100,200]
[null,"Oversized Giant rocking chair",1,400,400]
[null,"12' Banquet Table",3,25,75]
[null,"Bistro lights - 100 feet",1,40,40]
[null,"Barrel end tables",4,15,60]
["Barn Main Level","60' banquet table",26,20,520]
[null,"White folding poly chairs",230,14,3220]
[null,"Amish Buggy (in front of barn)",1,1600,1600]
[null,"Whiskey Barrel",6,85,510]
[null,"LED Uplighting in rafters",8,35,280]
[null,"Misc wooden tables, antiques, wall décor, etc","N/A","N/A"]
["Bar Area","Ice Machine",1,1600,1600]
[null,"2 tap Jocky Box",1,350,350]
[null,"Food Grade Stainless Steel Sink/Table",1,600,600]
[null,"Wall Clock",1,10,10]
[null,"Alarm System",1,650,650]
[null,"Misc bar supplies, shelves, utensils, etc","N/A","N/A"]
["Catering Lean to","Keg Coolers",4,50,200]
[null,"10' Fiberglass folding ladder",1,100,100]
[null,"24' aluminum extension ladder",1,150,150]
[null,"32' Fiberglass extension ladder",1,350,350]
[null,"Misc trash cans, fire extinquisher, hoses, cleaning supplies etc","N/A","N/A"]
["Red Shed","Push Lawn Mower",1,100,100]
[null,"Gas weed whacker",1,75,75]
[null,"Pull behind fertilizer spreader",1,100,100]
[null,"Propane tanks",2,15,30]
[null,"Week torch",1,75,75]
[null,"Pallet Benches",4,150,600]
[null,"Cement Corn Hole Area",4,875,3500]
[null,"Misc yard, gas cans, décor, etc","N/A","N/A"]
["Pole Barn","50' Heavy Duty Garden Hoses",4,15,60]
[null,"Misc Gas Cans, lumber, fence posts, sprinklers, etc","N/A","N/A"]
["TOTAL",null,null,null,{"$f":"SUM(E2:E126)","v":37682}]